bitfinex/quotes_SOLUSD_20230103
["timestamp","ask_amount","ask_price","bid_price","bid_amount"]
[1672727639799,113.0174,11.993,11.986,58.21474084]
[1672727640411,113.0174,11.993,11.986,112.27429603]
[1672727640617,25.59446204,11.994,11.986,112.27429603]
[1672727640831,25.59446204,11.994,11.987,58.21474084]
[1672727641673,337.59446204,11.994,11.987,58.21474084]
[1672727642525,337.59446204,11.994,11.987,112.27429603]
[1672727642943,337.59446204,11.994,11.988,58.21474084]
[1672727643357,337.59446204,11.994,11.988,112.27429603]
[1672727643682,337.59446204,11.994,11.989,58.21474084]
[1672727644084,337.59446204,11.994,11.99,54.05955519]
[1672727644510,337.59446204,11.994,11.991,58.21474084]
[1672727648753,10.0,12.0,11.994,41.52754145]
[1672727649158,10.0,12.0,11.995,12.79723102]
[1672727649484,10.0,12.0,11.996,122.56587496]
[1672727649895,10.0,12.0,11.997,62.14988747]
[1672727651674,322.0,12.0,11.997,62.14988747]
[1672727653907,322.0,12.0,11.997,122.56587496]
[1672727654229,322.0,12.0,11.998,62.14988747]
[1672727654641,322.0,12.0,11.998,122.56587496]
[1672727654957,322.0,12.0,11.999,62.14988747]
[1672727655369,322.0,12.0,11.999,122.56587496]
[1672727670951,322.0,12.0,11.999,171.83745869]
[1672727671153,256.86867689,12.0,11.999,171.83745869]
[1672727671468,112.277,12.008,11.999,122.56587496]
[1672727671657,112.277,12.008,12.0,11.36]
[1672727671869,30.0,12.016,12.001,30.0]
[1672727672079,30.0,12.013,12.001,146.92116029]
[1672727672300,312.0,12.008,12.002,60.41598749]
[1672727672503,312.0,12.008,12.002,116.92116029]
[1672727672708,312.0,12.008,12.003,56.5051728]
[1672727672937,312.0,12.008,12.003,116.92116029]
[1672727673154,312.0,12.008,12.004,60.41598749]
[1672727673341,108.3201,12.014,12.004,116.92116029]
[1672727673665,108.3201,12.014,12.005,146.92116029]
[1672727673873,108.3201,12.014,12.005,116.92116029]
[1672727674105,108.3201,12.014,12.006,116.92116029]
[1672727674496,108.3201,12.014,12.007,116.92116029]
[1672727674934,108.3201,12.014,12.008,116.92116029]
[1672727675132,30.0,12.018,12.008,116.92116029]
[1672727675342,30.0,12.018,12.009,116.92116029]
[1672727675553,30.0,12.016,12.009,129.71839131]
[1672727675763,30.0,12.016,12.01,56.5051728]
[1672727676195,111.4202,12.017,12.01,56.5051728]
[1672727676387,312.0,12.016,12.01,56.5051728]
[1672727676598,30.0,12.015,12.01,56.5051728]
[1672727676802,30.0,12.015,12.01,116.92116029]
[1672727677023,312.0,12.016,12.01,128.26116029]
[1672727677241,312.0,12.016,12.011,56.5051728]
[1672727677655,312.0,12.016,12.012,60.41598749]
[1672727677975,312.0,12.016,12.013,56.59183946]
[1672727678389,312.0,12.016,12.014,60.41598749]
[1672727678719,312.0,12.016,12.015,56.59183946]
[1672727679133,312.0,12.016,12.015,117.00782695]
[1672727679866,109.3049,12.021,12.015,117.00782695]
[1672727680188,30.0,12.025,12.016,62.9531728]
[1672727680607,149.1125,12.026,12.017,60.41598749]
[1672727681017,149.1125,12.026,12.018,65.8131728]
[1672727681948,149.1125,12.026,12.019,60.41598749]
[1672727681949,119.1125,12.026,12.019,60.41598749]
[1672727682377,119.1125,12.026,12.02,77.1431728]
[1672727682615,30.0,12.03,12.02,77.1431728]
[1672727682807,312.0,12.026,12.021,65.8131728]
[1672727683019,312.0,12.026,12.02,41.17386418]
[1672727683236,312.0,12.026,12.022,60.41598749]
[1672727683762,30.0,12.025,12.022,60.11535198]
[1672727683966,30.0,12.025,12.017,54.89988623]
[1672727684593,30.0,12.025,12.018,58.72228173]
[1672727685014,30.0,12.025,12.019,54.89988623]
[1672727685954,80.10835233,12.018,12.014,45.8951]
[1672727686175,30.0,12.017,12.001,23.2455]
[1672727686390,147.1506,12.017,12.001,139.3294]
[1672727686615,147.1506,12.017,12.002,50.14189609]
[1672727687112,110.3328,12.016,12.002,108.86417782]
[1672727687531,30.0,12.015,12.002,50.14189609]
[1672727687748,140.3328,12.015,12.003,98.64341485]
[1672727688378,140.3328,12.015,12.004,51.32521485]
[1672727691004,140.3328,12.015,12.004,110.04749658]
[1672727691542,140.3328,12.015,12.005,52.29931352]
[1672727692064,110.3328,12.015,12.005,111.02159525]
[1672727692485,110.3328,12.015,12.007,30.0]
[1672727692697,110.3328,12.015,12.006,52.29931352]
[1672727692884,110.3328,12.015,12.008,111.02159525]
[1672727693306,110.3328,12.015,12.009,111.02159525]
[1672727693517,30.0,12.017,12.009,111.02159525]
[1672727693844,30.0,12.017,12.01,123.81882627]
[1672727694062,30.0,12.015,12.01,123.81882627]
[1672727694380,30.0,12.015,12.011,123.81882627]
[1672727694593,30.0,12.015,12.011,111.02159525]
[1672727695114,30.0,12.017,12.011,58.72228173]
[1672727695314,30.0,12.017,12.004,30.0]
[1672727695315,30.0,12.017,12.006,52.29931352]
[1672727695517,144.949,12.017,12.006,52.29931352]
[1672727695726,144.949,12.017,12.006,111.02159525]
[1672727696058,144.949,12.017,12.007,52.29931352]
[1672727696455,144.949,12.017,12.007,111.02159525]
[1672727696794,144.949,12.017,12.008,52.29931352]
[1672727697318,144.949,12.017,12.009,58.72228173]
[1672727697724,144.949,12.017,12.009,111.02159525]
[1672727698146,144.949,12.017,12.01,58.72228173]
[1672727698565,144.949,12.017,12.011,52.29931352]
[1672727698988,144.949,12.017,12.011,111.02159525]
[1672727699198,114.949,12.017,12.011,58.72228173]
[1672727700250,114.949,12.017,12.011,111.02159525]
[1672727700786,114.949,12.017,12.001,23.2455]
[1672727700990,92.5,12.016,12.001,23.2455]
[1672727701207,142.60267827,12.016,12.002,12.79723102]
[1672727703502,50.10267827,12.015,12.002,12.79723102]
[1672727703838,312.0,12.006,12.002,12.79723102]
[1672727704040,30.0,12.005,12.002,12.79723102]
[1672727704243,30.0,12.005,11.994,145.94164277]
[1672727704453,30.0,12.005,11.993,148.78544882]
[1672727705832,30.0,12.005,11.993,156.70544882]
[1672727706247,30.0,12.005,11.993,148.78544882]
[1672727708904,80.10267827,12.005,11.993,148.78544882]
[1672727710867,80.10267827,12.005,11.994,158.73887379]
[1672727711288,80.10267827,12.005,11.995,12.79723102]
[1672727711827,312.0,11.997,11.993,148.78544882]
[1672727712042,30.0,11.996,11.992,7.921]
[1672727712237,30.0,11.996,11.995,12.79723102]
[1672727712448,30.0,11.996,11.992,7.921]
[1672727716878,30.0,11.996,11.992,7.421]
[1672727717195,30.0,11.996,11.992,20.21823102]
[1672727717912,30.0,11.999,11.992,20.21823102]
[1672727718136,140.7463,12.001,11.992,20.21823102]
[1672727719907,30.0,11.993,11.992,20.21823102]
[1672727720335,30.0,11.993,11.992,7.421]
[1672727720976,312.0,11.994,11.992,7.421]
[1672727721175,30.0,11.993,11.992,7.421]
[1672727721611,312.0,11.994,11.992,7.421]
[1672727722242,30.0,11.993,11.992,7.421]
[1672727722776,312.0,11.994,11.992,7.421]
[1672727724881,30.0,12.0,11.992,7.421]
[1672727725504,30.0,12.0,11.992,64.87077918]
[1672727725717,30.0,12.0,11.987,96.28045721]
[1672727725947,145.7158,12.0,11.987,153.73023639]
[1672727726468,145.7158,12.0,11.987,103.77617918]
[1672727727093,145.7158,12.0,11.988,25.59446204]
[1672727727410,145.7158,12.0,11.988,12.79723102]
[1672727727727,145.7158,12.0,11.988,70.2470102]
[1672727727935,30.0,11.992,11.988,70.2470102]
[1672727728149,312.0,11.993,11.989,12.79723102]
[1672727728366,312.0,11.993,11.988,57.44977918]
[1672727728566,312.0,11.993,11.989,57.44977918]
[1672727728974,30.0,11.998,11.989,57.44977918]
[1672727729193,30.0,11.998,11.989,107.40383639]
[1672727730150,30.0,11.998,11.99,7.422]
[1672727730549,30.0,11.998,11.991,107.40383639]
[1672727731085,30.0,11.998,11.99,7.422]
[1672727731086,30.0,11.998,11.992,107.40383639]
[1672727731933,342.0,11.998,11.992,49.95405721]
[1672727732132,342.0,11.998,11.99,7.422]
[1672727732685,342.0,11.998,11.99,64.87177918]
[1672727733178,342.0,11.998,11.99,114.82583639]
[1672727736125,342.0,11.998,11.99,57.37605721]
[1672727736751,342.0,11.998,11.99,7.422]
[1672727736965,30.0,11.998,11.99,7.422]
[1672727740030,312.0,11.991,11.99,7.422]
[1672727740646,312.0,11.991,11.988,48.494]
[1672727740968,30.0,11.99,11.985,24.4086]
[1672727741178,312.0,11.991,11.98,24.5034]
[1672727741391,312.0,11.991,11.981,57.44977918]
[1672727741586,30.0,11.99,11.981,57.44977918]
[1672727742753,312.0,11.991,11.981,57.44977918]
[1672727742962,30.0,11.99,11.981,57.44977918]
[1672727743392,312.0,11.991,11.981,57.44977918]
[1672727743603,30.0,11.99,11.981,57.44977918]
[1672727745797,30.0,11.99,11.98,46.8666]
[1672727746445,76.42882464,11.99,11.98,46.8666]
[1672727746971,30.0,11.99,11.98,46.8666]
[1672727747909,30.0,11.985,11.98,46.8666]
[1672727748123,30.0,11.985,11.977,23.4612]
[1672727748648,312.0,11.986,11.978,65.13110582]
[1672727749603,312.0,11.986,11.98,11.31]
[1672727749999,312.0,11.986,11.981,65.13110582]
[1672727750417,312.0,11.986,11.981,115.61162836]
[1672727750629,312.0,11.986,11.981,50.48052254]
[1672727750955,30.0,11.985,11.978,56.98443916]
[1672727751783,312.0,11.986,11.978,56.98443916]
[1672727752006,30.0,11.985,11.978,56.98443916]
[1672727752541,312.0,11.986,11.978,56.98443916]
[1672727753264,312.0,11.986,11.978,107.95725437]
[1672727753481,312.0,11.986,11.98,11.28]
[1672727754023,312.0,11.986,11.981,56.98443916]
[1672727754406,312.0,11.986,11.981,107.95725437]
[1672727754829,312.0,11.986,11.982,56.98443916]
[1672727755262,312.0,11.986,11.983,50.97281521]
[1672727755675,312.0,11.986,11.984,56.98443916]
[1672727759164,312.0,11.986,11.979,46.5091]
[1672727759377,312.0,11.986,11.98,56.98443916]
[1672727760960,312.0,11.986,11.981,50.97281521]
[1672727761375,312.0,11.986,11.982,56.98443916]
[1672727761906,312.0,11.986,11.983,50.97281521]
[1672727762228,312.0,11.986,11.984,56.98443916]
[1672727762651,312.0,11.986,11.984,107.95725437]
[1672727763073,312.0,11.986,11.985,56.98443916]
[1672727765573,119.0172,11.991,11.981,24.9481]
[1672727765784,30.0,11.99,11.981,24.9481]
[1672727767262,30.0,11.988,11.981,24.9481]
[1672727767468,45.56215797,11.989,11.981,24.9481]
[1672727767678,30.0,11.99,11.981,24.9481]
[1672727768725,312.0,11.982,11.981,24.9481]
[1672727768954,312.0,11.982,11.97,86.71]
[1672727769162,312.0,11.982,11.977,54.71432664]
[1672727772317,312.0,11.982,11.975,24.1733]
[1672727774425,312.0,11.982,11.975,78.88762664]
[1672727776717,30.0,11.981,11.975,78.88762664]
[1672727777037,30.0,11.989,11.975,78.88762664]
[1672727777254,108.4015,11.988,11.975,171.91252664]
[1672727777465,30.0,11.987,11.975,171.91252664]
[1672727777681,138.4015,11.987,11.975,171.91252664]
[1672727778206,138.4015,11.987,11.976,12.79723102]
[1672727778402,138.4015,11.987,11.976,47.3171]
[1672727779049,138.4015,11.987,11.976,78.37281597]
[1672727779788,312.0,11.978,11.976,78.37281597]
[1672727780005,312.0,11.978,11.976,54.87481597]
[1672727781994,312.0,11.978,11.972,48.3285]
[1672727782191,312.0,11.978,11.973,54.87481597]
[1672727782611,312.0,11.978,11.974,52.14066587]
[1672727783038,312.0,11.978,11.975,54.87481597]
[1672727783889,312.0,11.978,11.975,108.44674718]
[1672727784291,312.0,11.978,11.976,54.87481597]
[1672727784624,312.0,11.978,11.977,53.57193121]
[1672727784836,312.0,11.978,11.976,54.87481597]
[1672727786395,312.0,11.978,11.968,33.54092]
[1672727786396,135.69455063,11.968,11.949,143.59813856]
[1672727786609,62.76,11.967,11.943,143.98208529]
[1672727786827,230.7969127,11.967,11.931,96.1205]
[1672727787042,30.0,11.966,11.931,96.1205]
[1672727787252,106.42561469,11.965,11.942,931.82586395]
[1672727787561,30.0,11.959,11.942,965.47493795]
[1672727787792,62.81,11.958,11.942,965.47493795]
[1672727788497,30.0,11.957,11.942,46.44630502]
[1672727788715,62.82,11.956,11.942,46.44630502]
[1672727788930,30.0,11.955,11.942,46.44630502]
[1672727789252,312.0,11.948,11.942,46.44630502]
[1672727789450,30.0,11.946,11.942,46.44630502]
[1672727789664,30.0,11.946,11.942,33.649074]
[1672727790825,312.0,11.948,11.942,33.649074]
[1672727791142,30.0,11.963,11.942,33.649074]
[1672727791143,62.81,11.958,11.942,33.649074]
[1672727791344,92.78,11.963,11.942,69.77628174]
[1672727791571,30.0,11.963,11.943,12.79723102]
[1672727791900,30.0,11.963,11.95,11.34]
[1672727792208,30.0,11.963,11.951,12.79723102]
[1672727792832,62.79,11.962,11.951,12.79723102]
[1672727793038,30.0,11.961,11.951,12.79723102]
[1672727794072,30.0,11.961,11.951,0.00723102]
[1672727794073,312.0,11.956,11.951,0.00723102]
[1672727794288,30.0,11.955,11.942,33.649074]
[1672727794497,92.82,11.955,11.942,33.649074]
[1672727794709,92.82,11.955,11.943,12.79723102]
[1672727796609,30.0,11.955,11.942,33.649074]
[1672727797024,30.0,11.955,11.943,12.79723102]
[1672727799560,30.0,11.955,11.942,33.649074]
[1672727800087,30.0,11.955,11.943,12.79723102]
[1672727800274,30.0,11.955,11.942,33.649074]
[1672727800489,30.0,11.955,11.943,25.59446204]
[1672727800719,30.0,11.955,11.943,12.79723102]
[1672727801438,30.0,11.955,11.943,11.79723102]
[1672727803766,30.0,11.955,11.942,33.649074]
[1672727803991,30.0,11.955,11.943,0.00723102]
[1672727804183,92.82,11.955,11.943,12.79723102]
[1672727804606,30.0,11.955,11.943,12.79723102]
[1672727805232,30.0,11.953,11.943,12.79723102]
[1672727806913,30.0,11.951,11.943,12.79723102]
[1672727807240,38.36815702,11.942,11.93,57.23]
[1672727807570,38.36815702,11.942,11.93,11.54]
[1672727807762,30.0,11.941,11.93,11.54]
[1672727808498,30.0,11.941,11.93,33.67183]
[1672727808705,30.0,11.941,11.931,12.79723102]
[1672727811963,30.0,11.941,11.93,33.67183]
[1672727812180,30.0,11.941,11.93,45.06183]
[1672727812495,38.36815702,11.942,11.93,136.09943332]
[1672727812715,38.36815702,11.942,11.932,30.0]
[1672727813124,38.36815702,11.942,11.933,51.43569574]
[1672727813344,30.0,11.949,11.934,30.0]
[1672727813555,30.0,11.949,11.94,11.46]
[1672727814098,30.0,11.949,11.941,51.43569574]
[1672727814317,110.0955,11.956,11.941,114.91137753]
[1672727814632,110.0955,11.956,11.942,113.718813]
[1672727814829,110.0955,11.956,11.942,63.04036223]
[1672727815035,342.0,11.955,11.942,58.04601195]
[1672727815263,342.0,11.955,11.94,11.53]
[1672727815784,342.0,11.955,11.94,115.41601195]
[1672727816185,342.0,11.955,11.941,46.6354765]
[1672727816410,342.0,11.955,11.94,115.41601195]
[1672727816621,342.0,11.955,11.942,58.04601195]
[1672727818922,342.0,11.955,11.943,12.79723102]
[1672727819238,342.0,11.955,11.94,11.53]
[1672727820172,30.0,11.955,11.94,11.53]
[1672727820408,30.0,11.955,11.941,12.79723102]
[1672727821236,30.0,11.955,11.94,11.53]
[1672727821655,30.0,11.955,11.941,58.04601195]
[1672727821856,92.82,11.955,11.941,70.84324297]
[1672727822089,84.19144852,11.94,11.936,92.5864]
[1672727822285,84.19144852,11.94,11.931,58.04601195]
[1672727822491,84.19144852,11.94,11.93,33.67183]
[1672727822492,30.0,11.939,11.93,33.67183]
[1672727822696,62.91,11.938,11.932,12.79723102]
[1672727822924,30.0,11.937,11.932,12.79723102]
[1672727823140,30.0,11.937,11.922,30.0]
[1672727823332,30.0,11.937,11.926,33.690006]
[1672727823871,62.92,11.936,11.926,33.690006]
[1672727824088,30.0,11.935,11.926,33.690006]
[1672727824301,30.0,11.935,11.927,12.79723102]
[1672727824704,30.0,11.935,11.927,70.84324297]
[1672727824917,30.0,11.935,11.927,58.04601195]
[1672727826289,30.0,11.935,11.926,33.690006]
[1672727826497,30.0,11.935,11.928,12.79723102]
[1672727826706,30.0,11.935,11.927,53.64221561]
[1672727826912,30.0,11.933,11.929,53.64221561]
[1672727827129,30.0,11.933,11.928,12.79723102]
[1672727827338,30.0,11.931,11.926,8.09554396]
[1672727827868,30.0,11.931,11.926,0.00554396]
[1672727829749,30.0,11.929,11.926,0.00554396]
[1672727830171,30.0,11.929,11.926,53.64775957]
[1672727830806,30.0,11.929,11.926,111.69377152]
[1672727831220,342.0,11.929,11.926,111.69377152]
[1672727832299,342.0,11.929,11.912,140.95020268]
[1672727832600,30.0,11.927,11.915,100.18858117]
[1672727833005,30.0,11.927,11.916,100.15738117]
[1672727833430,30.0,11.927,11.917,100.15738117]
[1672727833851,30.0,11.927,11.918,100.15738117]
[1672727834275,30.0,11.927,11.919,100.15738117]
[1672727834688,30.0,11.927,11.914,33.708027]
[1672727834689,30.0,11.927,11.92,99.03972783]
[1672727835108,30.0,11.927,11.921,105.1063945]
[1672727835554,30.0,11.927,11.921,50.81322359]
[1672727835758,30.0,11.925,11.918,0.00893758]
[1672727836077,30.0,11.925,11.92,0.00723102]
[1672727836268,62.99,11.924,11.914,33.708027]
[1672727836707,30.0,11.925,11.914,33.708027]
[1672727838489,30.0,11.925,11.914,83.49743788]
[1672727838707,139.79653981,11.909,11.869,144.76458078]
[1672727838918,12.79723102,11.898,11.877,655.196951]
[1672727839125,12.79723102,11.898,11.877,354.596951]
[1672727839126,43.65561469,11.882,11.877,354.596951]
[1672727839345,63.21,11.881,11.868,149.93740241]
[1672727839546,63.21,11.881,11.876,57.5409]
[1672727839870,30.0,11.871,11.866,604.01418461]
[1672727840076,43.14632768,11.868,11.85,58.04]
[1672727840287,63.29,11.867,11.85,11.58]
[1672727840610,63.27,11.87,11.85,58.06]
[1672727840920,0.00314459,11.872,11.867,61.97300603]
[1672727841136,805.96,11.893,11.872,42.79408643]
[1672727841322,805.96,11.893,11.88,58.19]
[1672727841756,805.96,11.893,11.881,63.21]
[1672727841970,30.0,11.89,11.881,50.47575702]
[1672727842287,63.17,11.889,11.88,11.71]
[1672727842503,30.0,11.888,11.881,18.5]
[1672727842706,916.81211539,11.89,11.881,18.5]
[1672727843025,916.81211539,11.89,11.881,76.43749702]
[1672727843229,916.81211539,11.89,11.88,11.71]
[1672727843437,916.81211539,11.89,11.87,58.2]
[1672727843438,63.17,11.889,11.87,58.2]
[1672727843858,30.0,11.888,11.87,58.2]
[1672727844065,63.18,11.887,11.87,58.2]
[1672727844274,63.18,11.887,11.87,11.72]
[1672727844486,30.0,11.886,11.87,11.55]
[1672727844697,30.0,11.884,11.87,11.55]
[1672727844904,63.2,11.883,11.86,10.85]
[1672727845110,63.2,11.883,11.86,5.44]
[1672727845111,30.0,11.881,11.86,5.44]
[1672727845327,63.22,11.88,11.86,5.44]
[1672727845538,63.22,11.88,11.85,61.037308]
[1672727845741,30.0,11.879,11.85,39.277308]
[1672727845957,83.23,11.878,11.85,39.277308]
[1672727846157,30.0,11.877,11.851,53.94652371]
[1672727846373,63.24,11.876,11.851,108.50118589]
[1672727846690,30.0,11.875,11.86,5.44]
[1672727846905,63.25,11.874,11.86,27.21]
[1672727847111,63.23,11.878,11.861,117.20455705]
[1672727847421,30.0,11.881,11.861,117.20455705]
[1672727847422,63.22,11.88,11.87,5.44]
[1672727847648,30.0,11.881,11.871,3.68]
[1672727847852,93.21,11.881,11.871,51.5060392]
[1672727848044,93.21,11.881,11.87,5.44]
[1672727848276,93.21,11.881,11.871,56.96837915]
[1672727848491,63.21,11.881,11.871,56.96837915]
[1672727848695,63.2,11.883,11.871,56.96837915]
[1672727849092,63.19,11.885,11.871,56.96837915]
[1672727849530,30.0,11.884,11.871,56.96837915]
[1672727849743,30.0,11.882,11.86,27.25]
[1672727849960,63.21,11.881,11.86,27.25]
[1672727850271,30.0,11.88,11.87,5.44]
[1672727851329,30.0,11.88,11.871,77.08617208]
[1672727851639,30.0,11.88,11.871,20.0]
[1672727851857,30.0,11.878,11.866,57.08617208]
[1672727852053,30.0,11.878,11.85,55.597308]
[1672727852054,30.0,11.876,11.85,39.277308]
[1672727852260,63.25,11.875,11.85,39.277308]
[1672727852472,63.25,11.875,11.854,59.80303994]
[1672727852689,30.0,11.873,11.85,33.807308]
[1672727852903,30.0,11.871,11.85,92.52788127]
[1672727853098,83.27,11.87,11.85,92.52788127]
[1672727853309,30.0,11.869,11.85,97.96788127]
[1672727853530,63.28,11.868,11.851,65.76661177]
[1672727853746,30.0,11.866,11.851,65.76661177]
[1672727853960,372.77057423,11.864,11.852,57.53861327]
[1672727854169,379.52619518,11.862,11.852,99.27721202]
[1672727854366,376.87977723,11.872,11.853,192.72521052]
[1672727854571,376.87977723,11.872,11.853,259.10382379]
[1672727854787,30.0,11.88,11.854,172.76617047]
[1672727854788,379.41114106,11.874,11.854,172.76617047]
[1672727855002,30.0,11.876,11.86,10.86]
[1672727855319,30.0,11.88,11.861,83.32]
[1672727855530,30.0,11.88,11.861,155.97009033]
[1672727855531,63.23,11.879,11.861,155.97009033]
[1672727855741,63.23,11.879,11.862,111.45550599]
[1672727856067,30.0,11.88,11.87,5.41]
[1672727856376,30.0,11.878,11.87,39.08891364]
[1672727856584,63.24,11.877,11.87,39.08891364]
[1672727856790,30.0,11.876,11.87,39.08891364]
[1672727857003,30.0,11.876,11.863,66.35307339]
[1672727857219,63.24,11.877,11.864,92.00891364]
[1672727857419,63.21,11.881,11.87,5.44]
[1672727857633,93.21,11.882,11.87,5.44]
[1672727857837,93.21,11.882,11.871,137.62611358]
[1672727858260,93.21,11.882,11.872,138.57944691]
[1672727858472,63.21,11.882,11.872,138.57944691]
[1672727858679,30.0,11.884,11.873,151.3268228]
[1672727858892,63.21,11.882,11.857,20.0]
[1672727859125,63.21,11.882,11.851,30.0]
[1672727859342,30.0,11.881,11.86,101.98956661]
[1672727859542,63.22,11.88,11.86,101.98956661]
[1672727859741,30.0,11.879,11.86,101.98956661]
[1672727859957,30.0,11.877,11.86,101.98956661]
[1672727860165,83.24,11.876,11.86,101.98956661]
[1672727860598,30.0,11.873,11.86,101.98956661]
[1672727860896,30.0,11.871,11.855,36.34522086]
[1672727861121,68.7,11.87,11.85,94.846657]
[1672727861332,30.0,11.869,11.85,94.846657]
[1672727861535,30.0,11.867,11.855,61.039349]
[1672727861745,63.29,11.866,11.855,61.039349]
[1672727861959,30.0,11.865,11.855,61.039349]
[1672727862172,83.31,11.864,11.85,66.99430886]
[1672727862387,83.31,11.864,11.852,58.29097566]
[1672727862701,60.0,11.863,11.852,58.29097566]
[1672727862921,63.31,11.864,11.852,58.29097566]
[1672727863109,63.29,11.866,11.853,110.52763636]
[1672727863433,63.29,11.866,11.854,168.77884936]
[1672727863652,30.0,11.867,11.854,168.77884936]
[1672727863860,63.28,11.868,11.855,168.77884936]
[1672727864283,63.28,11.868,11.856,171.54628433]
[1672727864688,454.79807803,11.87,11.86,5.44]
[1672727865228,207.85693409,11.87,11.861,179.49344433]
[1672727865437,138.45002722,11.87,11.861,179.49344433]
[1672727865753,138.45002722,11.87,11.862,172.15215101]
[1672727865961,30.0,11.879,11.862,172.15215101]
[1672727866170,63.23,11.878,11.863,175.27896003]
[1672727866382,63.23,11.878,11.863,123.90164054]
[1672727866606,63.23,11.878,11.864,57.97872751]
[1672727866803,30.0,11.879,11.864,57.97872751]
[1672727867028,63.23,11.878,11.865,48.50637115]
[1672727867420,30.0,11.877,11.866,58.58539417]
[1672727867625,63.24,11.876,11.866,58.58539417]
[1672727867944,63.23,11.878,11.867,50.21533157]
[1672727868152,28.01747844,11.866,11.86,95.42138549]
[1672727868368,28.01747844,11.866,11.863,45.53607529]
[1672727868588,28.01747844,11.866,11.861,56.45466001]
[1672727868782,28.01747844,11.866,11.864,130.03937884]
[1672727869204,28.01747844,11.866,11.865,130.03937884]
[1672727870722,28.01747844,11.866,11.865,61.82799335]
[1672727871437,28.01747844,11.866,11.865,108.6018269]
[1672727872677,28.01747844,11.866,11.865,61.82799335]
[1672727873315,28.01747844,11.866,11.865,118.61163476]
[1672727874899,28.01747844,11.866,11.865,61.82799335]
[1672727875424,28.01747844,11.866,11.86,47.27255914]
[1672727875631,63.3,11.865,11.86,47.27255914]
[1672727875839,63.3,11.865,11.86,108.708973]
[1672727876983,63.3,11.865,11.86,35.482873]
[1672727877218,30.0,11.864,11.851,95.8628]
[1672727877420,30.0,11.863,11.84,5.49]
[1672727877738,93.32,11.862,11.835,36.72783254]
[1672727878055,93.32,11.862,11.841,83.15166589]
[1672727878479,30.0,11.858,11.842,83.15166589]
[1672727878793,30.0,11.858,11.834,87.93820717]
[1672727878794,5.43,11.85,11.834,87.93820717]
[1672727879102,5.43,11.85,11.837,51.69988313]
[1672727879103,63.39,11.849,11.837,51.69988313]
[1672727879531,63.35,11.856,11.837,110.89966862]
[1672727879835,63.35,11.856,11.838,40.82454092]
[1672727880046,30.0,11.856,11.84,5.44]
[1672727880260,30.0,11.859,11.84,27.14]
[1672727880470,30.0,11.859,11.842,30.0]
[1672727880666,115.1157,11.872,11.856,30.0]
[1672727880882,115.1157,11.872,11.85,5.44]
[1672727881106,63.27,11.87,11.857,43.90874758]
[1672727881506,30.0,11.865,11.858,68.63654313]
[1672727881932,30.0,11.869,11.859,41.74208092]
[1672727882133,63.28,11.868,11.859,41.74208092]
[1672727882347,63.28,11.868,11.859,110.37862405]
[1672727882771,43.14632768,11.867,11.86,43.72692586]
[1672727882978,43.14632768,11.867,11.856,68.69845215]
[1672727883189,116.26286532,11.869,11.847,96.1329]
[1672727883190,73.00627759,11.855,11.847,96.1329]
[1672727883522,73.00627759,11.855,11.843,50.07737746]
[1672727883710,30.0,11.854,11.847,93.60937347]
[1672727884347,73.00627759,11.855,11.847,93.60937347]
[1672727884764,30.0,11.854,11.847,93.60937347]